[Event "NJSK 2018 Jeugd B"]
[Site "Assen, Netherlands"]
[Date "2018.05.01"]
[Round "3.2"]
[White "Bruil, Rembrandt"]
[Black "Hilwerda, Jonas"]
[Result "1-0"]
[TimeControl "40/90m+30m+30sec/move"]
[WhiteElo "1998"]
[BlackElo "2108"]

1. d4 {[%clk 01:30:54]} {[%emt 00:00:05]} Nf6 {[%clk 01:30:55]} {[%emt
00:00:06]} 2. c4 {[%clk 01:31:20]} {[%emt 00:00:04]} e6 {[%clk 01:31:16]}
{[%emt 00:00:08]} 3. Nc3 {[%clk 01:31:46]} {[%emt 00:00:05]} Bb4 {[%clk
01:31:39]} {[%emt 00:00:08]} 4. Qc2 {[%clk 01:32:12]} {[%emt 00:00:04]} Nc6
{[%clk 01:31:40]} {[%emt 00:00:29]} 5. Nf3 {[%clk 01:31:33]} {[%emt 00:01:08]}
d6 {[%clk 01:31:06]} {[%emt 00:01:04]} 6. Bd2 {[%clk 01:23:15]} {[%emt
00:08:47]} e5 {[%clk 01:31:06]} {[%emt 00:00:31]} 7. d5 {[%clk 01:19:19]}
{[%emt 00:04:27]} Bxc3 {[%clk 01:30:03]} {[%emt 00:01:31]} 8. Bxc3 {[%clk
01:19:42]} {[%emt 00:00:08]} Ne7 {[%clk 01:29:40]} {[%emt 00:00:52]} 9. e4
{[%clk 01:19:49]} {[%emt 00:00:23]} O-O {[%clk 01:29:31]} {[%emt 00:00:38]} 10.
g3 {[%clk 01:06:48]} {[%emt 00:13:32]} Ne8 {[%clk 01:28:45]} {[%emt 00:01:15]}
11. Bg2 {[%clk 01:05:13]} {[%emt 00:02:06]} f5 {[%clk 01:26:39]} {[%emt
00:02:35]} 12. O-O {[%clk 01:03:09]} {[%emt 00:02:35]} h6 {[%clk 01:18:48]}
{[%emt 00:08:19]} 13. exf5 {[%clk 00:56:44]} {[%emt 00:06:57]} Bxf5 {[%clk
01:18:19]} {[%emt 00:00:58]} 14. Qe2 {[%clk 00:57:09]} {[%emt 00:00:06]} Bg4
{[%clk 01:09:55]} {[%emt 00:08:54]} 15. h3 {[%clk 00:51:55]} {[%emt 00:05:43]}
Bh5 {[%clk 01:07:44]} {[%emt 00:02:40]} 16. Qd3 {[%clk 00:35:45]} {[%emt
00:16:42]} Nf6 {[%clk 01:01:07]} {[%emt 00:07:06]} 17. Nd2 {[%clk 00:34:27]}
{[%emt 00:01:49]} Bg6 {[%clk 00:53:22]} {[%emt 00:08:14]} 18. Qe2 {[%clk
00:32:59]} {[%emt 00:01:59]} Qd7 {[%clk 00:49:34]} {[%emt 00:04:17]} 19. Rae1
{[%clk 00:30:23]} {[%emt 00:03:07]} Rae8 {[%clk 00:47:25]} {[%emt 00:02:39]} 20.
Kh2 {[%clk 00:29:36]} {[%emt 00:01:16]} Nf5 {[%clk 00:40:38]} {[%emt 00:07:17]}
21. Ne4 {[%clk 00:21:41]} {[%emt 00:08:26]} Nd4 {[%clk 00:11:22]} {[%emt
00:29:45]} 22. Nxf6+ {[%clk 00:20:02]} {[%emt 00:02:09]} Rxf6 {[%clk 00:11:33]}
{[%emt 00:00:19]} 23. Bxd4 {[%clk 00:20:25]} {[%emt 00:00:07]} exd4 {[%clk
00:12:02]} {[%emt 00:00:02]} 24. Qd2 {[%clk 00:20:39]} {[%emt 00:00:15]} d3
{[%clk 00:11:33]} {[%emt 00:00:58]} 25. Rxe8+ {[%clk 00:19:43]} {[%emt
00:01:27]} Qxe8 {[%clk 00:12:02]} {[%emt 00:00:01]} 26. Re1 {[%clk 00:19:52]}
{[%emt 00:00:22]} Qa4 {[%clk 00:07:37]} {[%emt 00:04:54]} 27. b3 {[%clk
00:19:12]} {[%emt 00:01:11]} Qa3 {[%clk 00:06:05]} {[%emt 00:02:01]} 28. f4
{[%clk 00:18:56]} {[%emt 00:00:46]} Qc5 {[%clk 00:04:09]} {[%emt 00:02:26]} 29.
Be4 {[%clk 00:18:39]} {[%emt 00:00:48]} Qd4 {[%clk 00:02:23]} {[%emt 00:02:16]}
30. Bxg6 {[%clk 00:18:16]} {[%emt 00:00:53]} Rxg6 {[%clk 00:02:51]} 31. Re3
{[%clk 00:18:27]} {[%emt 00:00:19]} Rf6 {[%clk 00:02:56]} {[%emt 00:00:26]} 32.
Qxd3 {[%clk 00:18:28]} {[%emt 00:00:29]} Qxd3 {[%clk 00:02:08]} {[%emt
00:01:18]} 33. Rxd3 {[%clk 00:18:44]} {[%emt 00:00:13]} Rf8 {[%clk 00:02:14]}
{[%emt 00:00:24]} 34. Re3 {[%clk 00:19:10]} {[%emt 00:00:04]} Kf7 {[%clk
00:02:40]} {[%emt 00:00:05]} 35. Re6 {[%clk 00:14:25]} {[%emt 00:05:15]} Rd8
{[%clk 00:02:05]} {[%emt 00:01:04]} 36. Kg2 {[%clk 00:13:57]} {[%emt 00:00:59]}
Rd7 {[%clk 00:02:17]} {[%emt 00:00:18]} 37. Kf3 {[%clk 00:14:11]} {[%emt
00:00:16]} Rd8 {[%clk 00:02:07]} {[%emt 00:00:39]} 38. f5 {[%clk 00:13:15]}
{[%emt 00:01:26]} Rd7 {[%clk 00:02:14]} {[%emt 00:00:23]} 39. g4 {[%clk
00:13:21]} {[%emt 00:00:25]} Rd8 {[%clk 00:02:14]} {[%emt 00:00:30]} 40. h4
{[%clk 00:13:02]} {[%emt 00:00:49]} Rd7 {[%clk 00:01:55]} {[%emt 00:00:49]} 41.
g5 {[%clk 00:12:09]} {[%emt 00:01:23]} hxg5 {[%clk 00:02:15]} {[%emt 00:00:09]}
42. hxg5 {[%clk 00:12:37]} {[%emt 00:00:03]} Rd8 {[%clk 00:02:09]} {[%emt
00:00:36]} 43. g6+ {[%clk 00:11:07]} {[%emt 00:01:59]} Kf8 {[%clk 00:02:21]}
{[%emt 00:00:17]} 44. Kf4 {[%clk 00:11:26]} {[%emt 00:00:13]} Rd7 {[%clk
00:26:11]} {[%emt 00:06:40]} 45. Kg5 {[%clk 00:39:58]} {[%emt 00:01:57]} Rd8
{[%clk 00:25:46]} {[%emt 00:00:55]} 46. f6 {[%clk 00:38:19]} {[%emt 00:02:10]}
gxf6+ {[%clk 00:26:14]} {[%emt 00:00:02]} 47. Kxf6 {[%clk 00:38:43]} {[%emt
00:00:05]} Rd7 {[%clk 00:26:35]} {[%emt 00:00:09]} 48. Re1 {[%clk 00:38:58]}
{[%emt 00:00:15]} a6 {[%clk 00:26:35]} {[%emt 00:00:31]} 49. Rg1 {[%clk
00:39:01]} {[%emt 00:00:27]} Kg8 {[%clk 00:23:35]} {[%emt 00:03:29]} 50. Re1
{[%clk 00:39:18]} {[%emt 00:00:14]} Kf8 {[%clk 00:23:56]} {[%emt 00:00:08]} 51.
Rh1 {[%clk 00:39:25]} {[%emt 00:00:24]} Kg8 {[%clk 00:24:18]} {[%emt 00:00:08]}
52. Rh7 {[%clk 00:39:09]} {[%emt 00:00:46]} 1-0

[Event "NJSK 2018 Jeugd B"]
[Site "Assen, Netherlands"]
[Date "2018.05.01"]
[Round "3.3"]
[White "Grutter, Tim"]
[Black "Kouwenhoven, Derk"]
[Result "0-1"]
[TimeControl "40/90m+30m+30sec/move"]
[WhiteElo "1974"]
[BlackElo "2091"]

1. e4 {[%clk 01:30:58]} {[%emt 00:00:02]} e5 {[%clk 01:30:40]} {[%emt
00:00:20]} 2. Nf3 {[%clk 01:31:21]} {[%emt 00:00:07]} Nc6 {[%clk 01:31:03]}
{[%emt 00:00:08]} 3. Bc4 {[%clk 01:31:42]} {[%emt 00:00:08]} Bc5 {[%clk
01:31:24]} {[%emt 00:00:09]} 4. c3 {[%clk 01:32:00]} {[%emt 00:00:12]} Nf6
{[%clk 01:31:43]} {[%emt 00:00:10]} 5. d3 {[%clk 01:32:18]} {[%emt 00:00:13]}
d6 {[%clk 01:31:35]} {[%emt 00:00:38]} 6. Nbd2 {[%clk 01:32:36]} {[%emt
00:00:12]} a6 {[%clk 01:31:40]} {[%emt 00:00:25]} 7. Bb3 {[%clk 01:32:54]}
{[%emt 00:00:12]} Ba7 {[%clk 01:32:00]} {[%emt 00:00:11]} 8. O-O {[%clk
01:33:17]} {[%emt 00:00:06]} O-O {[%clk 01:31:40]} {[%emt 00:00:50]} 9. h3
{[%clk 01:33:26]} {[%emt 00:00:21]} Be6 {[%clk 01:30:51]} {[%emt 00:01:18]} 10.
Re1 {[%clk 01:30:22]} {[%emt 00:03:34]} Ne7 {[%clk 01:29:44]} {[%emt 00:01:37]}
11. Nf1 {[%clk 01:29:21]} {[%emt 00:01:32]} Ng6 {[%clk 01:29:31]} {[%emt
00:00:42]} 12. Ng3 {[%clk 01:29:08]} {[%emt 00:00:44]} c6 {[%clk 01:29:12]}
{[%emt 00:00:49]} 13. Bc2 {[%clk 01:27:33]} {[%emt 00:02:05]} Qc7 {[%clk
01:25:45]} {[%emt 00:03:57]} 14. d4 {[%clk 01:23:43]} {[%emt 00:04:20]} h6
{[%clk 01:23:54]} {[%emt 00:02:20]} 15. Nf5 {[%clk 01:18:30]} {[%emt 00:05:44]}
Rfe8 {[%clk 01:19:50]} {[%emt 00:04:34]} 16. g4 {[%clk 01:08:48]} {[%emt
00:10:12]} d5 {[%clk 01:01:13]} {[%emt 00:19:07]} 17. exd5 {[%clk 00:47:05]}
{[%emt 00:22:12]} Bxd5 {[%clk 01:00:16]} {[%emt 00:01:28]} 18. g5 {[%clk
00:40:59]} {[%emt 00:06:36]} hxg5 {[%clk 00:52:54]} {[%emt 00:07:51]} 19. Bxg5
{[%clk 00:40:17]} {[%emt 00:01:12]} Nh7 {[%clk 00:51:28]} {[%emt 00:01:57]} 20.
Be3 {[%clk 00:36:46]} {[%emt 00:04:01]} e4 {[%clk 00:45:55]} {[%emt 00:06:03]}
21. Nh2 {[%clk 00:29:14]} {[%emt 00:08:02]} Bb8 {[%clk 00:41:49]} {[%emt
00:04:36]} 22. Nf1 {[%clk 00:28:10]} {[%emt 00:01:33]} Qd7 {[%clk 00:34:37]}
{[%emt 00:07:42]} 23. Qh5 {[%clk 00:22:08]} {[%emt 00:06:32]} Be6 {[%clk
00:32:31]} {[%emt 00:02:36]} 24. N1g3 {[%clk 00:17:46]} {[%emt 00:04:52]} Bxg3
{[%clk 00:30:50]} {[%emt 00:02:11]} 25. Nxg3 {[%clk 00:18:09]} {[%emt
00:00:07]} Nf6 {[%clk 00:30:54]} {[%emt 00:00:26]} 26. Qe2 {[%clk 00:16:20]}
{[%emt 00:02:19]} Bxh3 {[%clk 00:31:17]} {[%emt 00:00:07]} 27. Bg5 {[%clk
00:16:05]} {[%emt 00:00:45]} Bg4 {[%clk 00:27:17]} {[%emt 00:04:30]} 28. Qc4
{[%clk 00:14:28]} {[%emt 00:02:07]} b5 {[%clk 00:27:21]} {[%emt 00:00:26]} 29.
Qf1 {[%clk 00:13:45]} {[%emt 00:01:13]} Bh3 {[%clk 00:22:23]} {[%emt 00:05:28]}
30. Qe2 {[%clk 00:14:09]} {[%emt 00:00:07]} Nh7 {[%clk 00:22:48]} {[%emt
00:00:05]} 31. Qd2 {[%clk 00:13:17]} {[%emt 00:01:21]} Qg4 {[%clk 00:21:06]}
{[%emt 00:02:11]} 32. Qe2 {[%clk 00:07:22]} {[%emt 00:06:27]} Nxg5 {[%clk
00:20:53]} {[%emt 00:00:42]} 33. Qxg4 {[%clk 00:07:47]} {[%emt 00:00:05]} Bxg4
{[%clk 00:21:19]} {[%emt 00:00:04]} 34. Bxe4 {[%clk 00:07:52]} {[%emt
00:00:26]} Nxe4 {[%clk 00:20:41]} {[%emt 00:01:07]} 35. Rxe4 {[%clk 00:08:07]}
{[%emt 00:00:15]} Rxe4 {[%clk 00:21:03]} {[%emt 00:00:08]} 36. Nxe4 {[%clk
00:08:34]} {[%emt 00:00:04]} Re8 {[%clk 00:20:23]} {[%emt 00:01:10]} 37. Nc5
{[%clk 00:08:54]} {[%emt 00:00:10]} Re2 {[%clk 00:17:05]} {[%emt 00:03:48]} 38.
Nxa6 {[%clk 00:09:00]} {[%emt 00:00:24]} Rxb2 {[%clk 00:17:30]} {[%emt
00:00:05]} 39. Nb4 {[%clk 00:09:24]} {[%emt 00:00:05]} Bf3 {[%clk 00:17:17]}
{[%emt 00:00:43]} 40. a4 {[%clk 00:09:24]} {[%emt 00:00:30]} bxa4 {[%clk
00:17:17]} {[%emt 00:00:30]} 41. Rxa4 {[%clk 00:09:44]} {[%emt 00:00:10]} Nf4
{[%clk 00:17:29]} {[%emt 00:00:18]} 42. Kh2 {[%clk 00:09:19]} {[%emt 00:00:55]}
Ne2 {[%clk 00:17:43]} {[%emt 00:00:17]} 43. Ra1 {[%clk 00:09:02]} {[%emt
00:00:46]} Nxc3 {[%clk 00:17:50]} {[%emt 00:00:23]} 44. Nd3 {[%clk 00:09:23]}
{[%emt 00:00:09]} Rd2 {[%clk 00:17:14]} {[%emt 00:01:06]} 45. Ne5 {[%clk
00:09:30]} {[%emt 00:00:23]} Bd5 {[%clk 00:17:24]} {[%emt 00:00:20]} 46. Ra3
{[%clk 00:07:17]} {[%emt 00:02:43]} Rxf2 {[%clk 00:17:10]} {[%emt 00:00:44]} 47.
Kg1 {[%clk 00:07:18]} {[%emt 00:00:30]} Rc2 {[%clk 00:16:43]} {[%emt 00:00:56]}
48. Kf1 {[%clk 00:07:06]} {[%emt 00:00:42]} f6 {[%clk 00:15:40]} {[%emt
00:01:34]} 49. Ng4 {[%clk 00:06:40]} {[%emt 00:00:55]} Nb5 {[%clk 00:15:49]}
{[%emt 00:00:21]} 50. Ra8+ {[%clk 00:06:53]} {[%emt 00:00:17]} Kf7 {[%clk
00:16:12]} {[%emt 00:00:07]} 51. Ne3 {[%clk 00:07:18]} {[%emt 00:00:05]} Rc1+
{[%clk 00:16:34]} {[%emt 00:00:08]} 52. Kf2 {[%clk 00:07:44]} {[%emt 00:00:04]}
Nxd4 {[%clk 00:16:31]} {[%emt 00:00:33]} 0-1

[Event "NJSK 2018 Jeugd B"]
[Site "Assen, Netherlands"]
[Date "2018.05.01"]
[Round "3.4"]
[White "Wedda, Dries"]
[Black "Noordenbos, Daan"]
[Result "1-0"]
[TimeControl "40/90m+30m+30sec/move"]
[WhiteElo "2096"]
[BlackElo "1763"]

1. d4 {[%clk 01:30:58]} {[%emt 00:00:02]} Nf6 {[%clk 01:30:46]} {[%emt
00:00:13]} 2. c4 {[%clk 01:27:25]} {[%emt 00:04:05]} g6 {[%clk 01:31:01]}
{[%emt 00:00:14]} 3. Nc3 {[%clk 01:27:51]} {[%emt 00:00:04]} Bg7 {[%clk
01:30:42]} {[%emt 00:00:48]} 4. e4 {[%clk 01:28:05]} {[%emt 00:00:16]} d6
{[%clk 01:30:14]} {[%emt 00:00:59]} 5. Nge2 {[%clk 01:28:28]} {[%emt 00:00:07]}
O-O {[%clk 01:30:16]} {[%emt 00:00:25]} 6. Ng3 {[%clk 01:28:55]} {[%emt
00:00:06]} c5 {[%clk 01:25:40]} {[%emt 00:05:05]} 7. d5 {[%clk 01:29:24]}
{[%emt 00:00:02]} e6 {[%clk 01:24:52]} {[%emt 00:01:18]} 8. Be2 {[%clk
01:29:42]} {[%emt 00:00:11]} exd5 {[%clk 01:24:45]} {[%emt 00:00:37]} 9. cxd5
{[%clk 01:28:43]} {[%emt 00:01:30]} a6 {[%clk 01:23:45]} {[%emt 00:01:30]} 10.
a4 {[%clk 01:29:04]} {[%emt 00:00:09]} Nbd7 {[%clk 01:19:44]} {[%emt 00:04:31]}
11. O-O {[%clk 01:29:21]} {[%emt 00:00:12]} b6 {[%clk 01:18:48]} {[%emt
00:01:26]} 12. Bg5 {[%clk 01:19:37]} {[%emt 00:10:14]} h6 {[%clk 01:07:06]}
{[%emt 00:12:12]} 13. Be3 {[%clk 01:18:56]} {[%emt 00:01:12]} Re8 {[%clk
01:03:46]} {[%emt 00:03:49]} 14. f3 {[%clk 01:11:43]} {[%emt 00:07:44]} Kh7
{[%clk 00:57:58]} {[%emt 00:06:16]} 15. Qd2 {[%clk 01:09:24]} {[%emt 00:02:51]}
Ne5 {[%clk 00:48:00]} {[%emt 00:10:26]} 16. h3 {[%clk 01:04:05]} {[%emt
00:05:50]} g5 {[%clk 00:40:03]} {[%emt 00:08:27]} 17. f4 {[%clk 01:01:09]}
{[%emt 00:03:26]} gxf4 {[%clk 00:39:05]} {[%emt 00:01:28]} 18. Rxf4 {[%clk
00:59:03]} {[%emt 00:02:36]} Ra7 {[%clk 00:37:24]} {[%emt 00:02:11]} 19. Raf1
{[%clk 00:52:13]} {[%emt 00:07:20]} Qe7 {[%clk 00:34:16]} {[%emt 00:03:38]} 20.
Bd3 {[%clk 00:37:19]} {[%emt 00:15:25]} Ng6 {[%clk 00:21:31]} {[%emt 00:13:15]}
21. R4f2 {[%clk 00:37:22]} {[%emt 00:00:27]} Ng8 {[%clk 00:19:34]} {[%emt
00:02:27]} 22. Nf5 {[%clk 00:25:42]} {[%emt 00:12:10]} Bxf5 {[%clk 00:18:10]}
{[%emt 00:01:53]} 23. exf5 {[%clk 00:26:02]} {[%emt 00:00:10]} Qxe3 {[%clk
00:17:53]} {[%emt 00:00:48]} 24. fxg6 {[%clk 00:26:30]} fxg6 {[%clk 00:17:03]}
{[%emt 00:01:19]} 25. Bxg6 {[%clk 00:26:58]} {[%emt 00:00:03]} Kh8 {[%clk
00:15:13]} {[%emt 00:02:20]} 26. Bxe8 {[%clk 00:26:12]} {[%emt 00:01:17]} Qxe8
{[%clk 00:15:18]} {[%emt 00:00:25]} 27. Kh1 {[%clk 00:24:34]} {[%emt 00:02:07]}
Re7 {[%clk 00:15:00]} {[%emt 00:00:48]} 28. Ne2 {[%clk 00:19:59]} {[%emt
00:05:06]} Nf6 {[%clk 00:10:51]} {[%emt 00:04:37]} 29. Ng3 {[%clk 00:16:49]}
{[%emt 00:03:41]} Ne4 {[%clk 00:08:02]} {[%emt 00:03:19]} 30. Nxe4 {[%clk
00:17:12]} {[%emt 00:00:07]} Rxe4 {[%clk 00:08:18]} {[%emt 00:00:13]} 31. Rf7
{[%clk 00:12:32]} {[%emt 00:05:12]} Qe5 {[%clk 00:07:00]} {[%emt 00:01:48]} 32.
Qf2 {[%clk 00:09:55]} {[%emt 00:03:06]} Rxa4 {[%clk 00:03:41]} {[%emt
00:03:49]} 33. Rb7 {[%clk 00:07:17]} {[%emt 00:03:09]} b5 {[%clk 00:02:16]}
{[%emt 00:01:54]} 34. Qf8 {[%clk 00:07:18]} {[%emt 00:00:30]} Bxf8 {[%clk
00:02:04]} {[%emt 00:00:41]} 35. Rxf8 {[%clk 00:07:14]} {[%emt 00:00:03]} 1-0

[Event "NJSK 2018 Jeugd B"]
[Site "Assen, Netherlands"]
[Date "2018.05.01"]
[Round "3.5"]
[White "Emans, Job"]
[Black "Van Randtwijk, Mick"]
[Result "0-1"]
[TimeControl "40/90m+30m+30sec/move"]
[WhiteElo "1803"]
[BlackElo "1992"]

1. d4 {[%clk 01:30:51]} {[%emt 00:00:08]} Nf6 {[%clk 01:30:54]} {[%emt
00:00:06]} 2. c4 {[%clk 01:31:16]} {[%emt 00:00:05]} e6 {[%clk 01:31:18]}
{[%emt 00:00:06]} 3. Nc3 {[%clk 01:31:42]} {[%emt 00:00:04]} Bb4 {[%clk
01:31:40]} {[%emt 00:00:07]} 4. a3 {[%clk 01:32:08]} {[%emt 00:00:05]} Bxc3+
{[%clk 01:31:22]} {[%emt 00:00:48]} 5. bxc3 {[%clk 01:32:32]} {[%emt 00:00:06]}
O-O {[%clk 01:31:05]} {[%emt 00:00:47]} 6. f3 {[%clk 01:22:22]} {[%emt
00:10:40]} d5 {[%clk 01:31:11]} {[%emt 00:00:24]} 7. Bg5 {[%clk 01:21:00]}
{[%emt 00:01:52]} h6 {[%clk 01:30:09]} {[%emt 00:01:32]} 8. Bh4 {[%clk
01:21:06]} {[%emt 00:00:24]} c5 {[%clk 01:26:27]} {[%emt 00:04:12]} 9. e3
{[%clk 01:13:31]} {[%emt 00:08:05]} Nc6 {[%clk 01:24:41]} {[%emt 00:02:16]} 10.
Bd3 {[%clk 01:09:13]} {[%emt 00:04:47]} dxc4 {[%clk 01:19:15]} {[%emt
00:05:56]} 11. Bxc4 {[%clk 01:09:34]} {[%emt 00:00:10]} Qa5 {[%clk 01:19:34]}
{[%emt 00:00:11]} 12. Ne2 {[%clk 01:06:31]} {[%emt 00:03:33]} Nd5 {[%clk
01:19:54]} {[%emt 00:00:10]} 13. Qd2 {[%clk 01:03:54]} {[%emt 00:03:07]} cxd4
{[%clk 01:17:37]} {[%emt 00:02:47]} 14. cxd4 {[%clk 00:58:57]} {[%emt
00:05:27]} Nxe3 {[%clk 01:17:27]} {[%emt 00:00:39]} 0-1

[Event "NJSK 2018 Jeugd B"]
[Site "Assen, Netherlands"]
[Date "2018.05.01"]
[Round "3.6"]
[White "Achuthan, Dylan"]
[Black "Honkoop, Gilian"]
[Result "1-0"]
[TimeControl "40/90m+30m+30sec/move"]
[WhiteElo "1673"]
[BlackElo "1889"]

1. e4 {[%clk 01:30:57]} {[%emt 00:00:02]} e5 {[%clk 01:30:58]} {[%emt
00:00:02]} 2. Nf3 {[%clk 01:31:20]} {[%emt 00:00:07]} Nc6 {[%clk 01:31:27]}
{[%emt 00:00:02]} 3. Bc4 {[%clk 01:31:41]} {[%emt 00:00:08]} Bc5 {[%clk
01:31:53]} {[%emt 00:00:05]} 4. Nc3 {[%clk 01:32:06]} {[%emt 00:00:05]} d6
{[%clk 01:32:16]} {[%emt 00:00:07]} 5. h3 {[%clk 01:32:29]} {[%emt 00:00:07]}
Nf6 {[%clk 01:32:33]} {[%emt 00:00:13]} 6. d3 {[%clk 01:32:53]} {[%emt
00:00:06]} Be6 {[%clk 01:32:50]} {[%emt 00:00:13]} 7. Bb3 {[%clk 01:33:00]}
{[%emt 00:00:24]} O-O {[%clk 01:32:12]} {[%emt 00:01:07]} 8. Bg5 {[%clk
01:33:04]} {[%emt 00:00:25]} h6 {[%clk 01:32:32]} {[%emt 00:00:12]} 9. Bh4
{[%clk 01:33:01]} {[%emt 00:00:32]} g5 {[%clk 01:32:55]} {[%emt 00:00:07]} 10.
Bg3 {[%clk 01:25:21]} {[%emt 00:08:10]} a6 {[%clk 01:31:50]} {[%emt 00:01:35]}
11. Qd2 {[%clk 01:23:49]} {[%emt 00:02:03]} Bb4 {[%clk 01:19:50]} {[%emt
00:12:30]} 12. O-O-O {[%clk 01:06:25]} {[%emt 00:17:53]} Nd4 {[%clk 01:17:46]}
{[%emt 00:02:34]} 13. Rde1 {[%clk 01:03:56]} {[%emt 00:02:59]} c5 {[%clk
01:06:14]} {[%emt 00:12:02]} 14. h4 {[%clk 00:54:31]} {[%emt 00:09:55]} Nxf3
{[%clk 00:41:59]} {[%emt 00:24:44]} 15. gxf3 {[%clk 00:54:04]} {[%emt
00:00:57]} Nh7 {[%clk 00:41:26]} {[%emt 00:01:03]} 16. Reg1 {[%clk 00:52:15]}
{[%emt 00:02:19]} Bxb3 {[%clk 00:40:11]} {[%emt 00:01:46]} 17. cxb3 {[%clk
00:51:16]} {[%emt 00:01:29]} Bxc3 {[%clk 00:40:13]} {[%emt 00:00:27]} 18. bxc3
{[%clk 00:51:04]} {[%emt 00:00:42]} Kh8 {[%clk 00:39:54]} {[%emt 00:00:50]} 19.
hxg5 {[%clk 00:48:56]} {[%emt 00:02:37]} hxg5 {[%clk 00:40:21]} {[%emt
00:00:03]} 20. f4 {[%clk 00:36:17]} {[%emt 00:13:09]} gxf4 {[%clk 00:27:52]}
{[%emt 00:12:59]} 21. Bxf4 {[%clk 00:35:34]} {[%emt 00:01:14]} f6 {[%clk
00:27:55]} {[%emt 00:00:27]} 22. Rxh7 {[%clk 00:34:09]} {[%emt 00:01:54]} Kxh7
{[%clk 00:28:18]} {[%emt 00:00:07]} 23. f3 {[%clk 00:34:18]} {[%emt 00:00:21]}
1-0

[Event "NJSK 2018 Jeugd B"]
[Site "Assen, Netherlands"]
[Date "2018.05.01"]
[Round "3.7"]
[White "Bruggink, Tycho"]
[Black "Gevorkjan, Lewon"]
[Result "1/2-1/2"]
[TimeControl "40/90m+30m+30sec/move"]
[WhiteElo "1899"]
[BlackElo "1821"]

1. e4 {[%clk 01:30:58]} d5 {[%clk 01:30:27]} {[%emt 00:00:34]} 2. exd5 {[%clk
01:31:23]} {[%emt 00:00:05]} Nf6 {[%clk 01:30:55]} {[%emt 00:00:03]} 3. d4
{[%clk 01:31:47]} {[%emt 00:00:05]} Bg4 {[%clk 01:31:05]} {[%emt 00:00:20]} 4.
Nf3 {[%clk 01:28:25]} {[%emt 00:03:52]} Qxd5 {[%clk 01:30:50]} {[%emt
00:00:46]} 5. Be2 {[%clk 01:28:48]} {[%emt 00:00:06]} Nc6 {[%clk 01:30:51]}
{[%emt 00:00:30]} 6. c3 {[%clk 01:28:00]} {[%emt 00:01:18]} O-O-O {[%clk
01:30:10]} {[%emt 00:01:11]} 7. O-O {[%clk 01:27:39]} {[%emt 00:00:50]} e6
{[%clk 01:07:00]} {[%emt 00:23:41]} 8. h3 {[%clk 01:21:40]} {[%emt 00:06:29]}
Bh5 {[%clk 01:05:42]} {[%emt 00:01:47]} 9. Bf4 {[%clk 01:22:04]} {[%emt
00:00:05]} Bd6 {[%clk 01:04:53]} {[%emt 00:01:20]} 10. Bxd6 {[%clk 01:20:23]}
{[%emt 00:02:11]} Qxd6 {[%clk 01:02:30]} {[%emt 00:02:54]} 11. Ne5 {[%clk
01:19:23]} {[%emt 00:01:30]} Nxe5 {[%clk 00:59:56]} {[%emt 00:03:04]} 12. Bxh5
{[%clk 01:19:30]} {[%emt 00:00:21]} Nxh5 {[%clk 00:59:48]} {[%emt 00:00:40]} 13.
Qxh5 {[%clk 01:19:50]} {[%emt 00:00:09]} Ng6 {[%clk 01:00:10]} {[%emt
00:00:08]} 14. Nd2 {[%clk 01:13:18]} {[%emt 00:07:03]} Qc6 {[%clk 00:58:02]}
{[%emt 00:02:39]} 15. Qf3 {[%clk 01:12:48]} {[%emt 00:00:59]} Qxf3 {[%clk
00:53:02]} {[%emt 00:05:30]} 16. Nxf3 {[%clk 01:13:14]} {[%emt 00:00:05]} f6
{[%clk 00:53:17]} {[%emt 00:00:15]} 17. Rfe1 {[%clk 01:10:39]} {[%emt
00:03:04]} Rhe8 {[%clk 00:53:14]} {[%emt 00:00:34]} 18. Re2 {[%clk 01:10:33]}
{[%emt 00:00:35]} Rd6 {[%clk 00:53:17]} {[%emt 00:00:27]} 19. g3 {[%clk
01:10:12]} {[%emt 00:00:51]} Kd7 {[%clk 00:52:52]} {[%emt 00:00:55]} 20. Nd2
{[%clk 01:09:50]} {[%emt 00:00:52]} e5 {[%clk 00:49:27]} {[%emt 00:03:55]} 21.
Nb3 {[%clk 01:09:45]} {[%emt 00:00:35]} b6 {[%clk 00:49:32]} {[%emt 00:00:26]}
22. Rae1 {[%clk 01:09:31]} {[%emt 00:00:43]} Re7 {[%clk 00:46:17]} {[%emt
00:03:45]} 23. Kg2 {[%clk 01:09:36]} {[%emt 00:00:25]} a6 {[%clk 00:39:52]}
{[%emt 00:06:55]} 24. dxe5 {[%clk 01:06:18]} {[%emt 00:03:48]} Rxe5 {[%clk
00:38:47]} {[%emt 00:01:34]} 25. f4 {[%clk 01:05:51]} {[%emt 00:00:58]} Rxe2+
{[%clk 00:39:00]} {[%emt 00:00:18]} 26. Rxe2 {[%clk 01:06:16]} {[%emt
00:00:05]} c5 {[%clk 00:38:51]} {[%emt 00:00:38]} 27. Rd2 {[%clk 01:03:37]}
{[%emt 00:03:09]} Ne7 {[%clk 00:38:12]} {[%emt 00:01:09]} 28. Kf3 {[%clk
01:03:09]} {[%emt 00:00:58]} Nf5 {[%clk 00:37:05]} {[%emt 00:01:37]} 29. Rxd6+
{[%clk 00:59:57]} {[%emt 00:03:42]} Nxd6 {[%clk 00:37:14]} {[%emt 00:00:21]} 30.
Nd2 {[%clk 01:00:23]} {[%emt 00:00:04]} f5 {[%clk 00:34:46]} {[%emt 00:02:59]}
31. g4 {[%clk 00:57:37]} {[%emt 00:03:15]} Ke6 {[%clk 00:31:33]} {[%emt
00:03:43]} 32. c4 {[%clk 00:57:58]} {[%emt 00:00:09]} g6 {[%clk 00:31:05]}
{[%emt 00:00:59]} 33. b3 {[%clk 00:58:21]} {[%emt 00:00:06]} Kf6 {[%clk
00:24:58]} {[%emt 00:06:37]} 1/2-1/2